[Event "Titled Tuesday Blitz December 20 Early 2022"]
[White "BlueWizzard"]
[Black "biostatistician"]
[WhiteElo "2862"]
[BlackElo "2574"]
[Result "1-0"]
[Round "02"]
[TimeControl "180+2"]
[Date "2022.12.20"]
[WhiteClock "0:00:11"]
[BlackClock "0:00:02"]

1. d4 {[%clk 0:03:00]}  Nf6 {[%clk 0:02:58]} 2. Nc3 {[%clk 0:03:01]}  d5 {[%clk 0:02:58]} 3. Bg5 {[%clk 0:03:02]}  Bf5 {[%clk 0:02:58]} 4. Nf3 {[%clk 0:02:59]}  Nbd7 {[%clk 0:02:58]} 5. Nh4 {[%clk 0:02:59]}  Bg6 {[%clk 0:02:56]} 6. e3 {[%clk 0:02:58]}  e6 {[%clk 0:02:55]} 7. Be2 {[%clk 0:02:56]}  Be7 {[%clk 0:02:55]} 8. Nxg6 {[%clk 0:02:53]}  hxg6 {[%clk 0:02:54]} 9. h3 {[%clk 0:02:50]}  Nh5 {[%clk 0:02:51]} 10. h4 {[%clk 0:02:39]}  f6 {[%clk 0:02:23]} 11. g4 {[%clk 0:02:20]}  fxg5 {[%clk 0:02:19]} 12. gxh5 {[%clk 0:02:21]}  gxh4 {[%clk 0:02:19]} 13. Qd3 {[%clk 0:02:15]}  Rh6 {[%clk 0:02:09]} 14. O-O-O {[%clk 0:02:11]}  Nb6 {[%clk 0:02:07]} 15. Rhg1 {[%clk 0:02:01]}  Qd6 {[%clk 0:01:50]} 16. Rxg6 {[%clk 0:01:51]}  O-O-O {[%clk 0:01:48]} 17. Nb5 {[%clk 0:01:37]}  Qh2 {[%clk 0:01:35]} 18. Rxg7 {[%clk 0:01:31]}  Bd6 {[%clk 0:01:23]} 19. Qc3 {[%clk 0:01:21]}  a6 {[%clk 0:00:56]} 20. Nxd6+ {[%clk 0:01:02]}  Qxd6 {[%clk 0:00:55]} 21. Rh1 {[%clk 0:00:55]}  Rf8 {[%clk 0:00:47]} 22. f4 {[%clk 0:00:54]}  Kb8 {[%clk 0:00:40]} 23. Rxh4 {[%clk 0:00:49]}  Rc8 {[%clk 0:00:40]} 24. Qc5 {[%clk 0:00:44]}  Qd8 {[%clk 0:00:39]} 25. Rh2 {[%clk 0:00:39]}  Qh8 {[%clk 0:00:37]} 26. Rg5 {[%clk 0:00:34]}  Nd7 {[%clk 0:00:36]} 27. Qe7 {[%clk 0:00:31]}  Nf6 {[%clk 0:00:33]} 28. Qg7 {[%clk 0:00:32]}  Ne4 {[%clk 0:00:32]} 29. Rg1 {[%clk 0:00:28]}  Qxg7 {[%clk 0:00:20]} 30. Rxg7 {[%clk 0:00:29]}  Rch8 {[%clk 0:00:20]} 31. Bf3 {[%clk 0:00:29]}  Nf6 {[%clk 0:00:20]} 32. Re7 {[%clk 0:00:22]}  Nxh5 {[%clk 0:00:15]} 33. Bxh5 {[%clk 0:00:18]}  Rxh5 {[%clk 0:00:16]} 34. Rxh5 {[%clk 0:00:18]}  Rxh5 {[%clk 0:00:16]} 35. Rxe6 {[%clk 0:00:19]}  Rh2 {[%clk 0:00:17]} 36. b3 {[%clk 0:00:17]}  Kc8 {[%clk 0:00:16]} 37. Kb2 {[%clk 0:00:17]}  Kd7 {[%clk 0:00:17]} 38. Re5 {[%clk 0:00:18]}  Kd6 {[%clk 0:00:15]} 39. a4 {[%clk 0:00:17]}  b6 {[%clk 0:00:16]} 40. Kc3 {[%clk 0:00:17]}  c5 {[%clk 0:00:16]} 41. Rg5 {[%clk 0:00:15]}  Rh3 {[%clk 0:00:14]} 42. Rg6+ {[%clk 0:00:15]}  Kc7 {[%clk 0:00:15]} 43. Kd3 {[%clk 0:00:15]}  c4+ {[%clk 0:00:11]} 44. bxc4 {[%clk 0:00:13]}  dxc4+ {[%clk 0:00:11]} 45. Kd2 {[%clk 0:00:13]}  Rh2+ {[%clk 0:00:11]} 46. Kc3 {[%clk 0:00:14]}  Re2 {[%clk 0:00:11]} 47. Re6 {[%clk 0:00:14]}  b5 {[%clk 0:00:11]} 48. axb5 {[%clk 0:00:15]}  axb5 {[%clk 0:00:12]} 49. f5 {[%clk 0:00:16]}  Kd7 {[%clk 0:00:12]} 50. Re5 {[%clk 0:00:16]}  Kd6 {[%clk 0:00:12]} 51. Rxb5 {[%clk 0:00:16]}  Rxe3+ {[%clk 0:00:12]} 52. Kxc4 {[%clk 0:00:17]}  Rf3 {[%clk 0:00:12]} 53. c3 {[%clk 0:00:17]}  Kc6 {[%clk 0:00:11]} 54. Re5 {[%clk 0:00:17]}  Kd6 {[%clk 0:00:11]} 55. Ra5 {[%clk 0:00:18]}  Kc6 {[%clk 0:00:11]} 56. Rb5 {[%clk 0:00:17]}  Rf4 {[%clk 0:00:10]} 57. Re5 {[%clk 0:00:12]}  Kd6 {[%clk 0:00:11]} 58. Re6+ {[%clk 0:00:11]}  Kd7 {[%clk 0:00:11]} 59. Ra6 {[%clk 0:00:11]}  Kc7 {[%clk 0:00:10]} 60. Kc5 {[%clk 0:00:11]}  Rxf5+ {[%clk 0:00:10]} 61. d5 {[%clk 0:00:12]}  Rf1 {[%clk 0:00:10]} 62. c4 {[%clk 0:00:12]}  Rc1 {[%clk 0:00:09]} 63. Ra7+ {[%clk 0:00:12]}  Kb8 {[%clk 0:00:08]} 64. Rf7 {[%clk 0:00:12]}  Kc8 {[%clk 0:00:08]} 65. d6 {[%clk 0:00:09]}  Kd8 {[%clk 0:00:08]} 66. Rf4 {[%clk 0:00:09]}  Kd7 {[%clk 0:00:08]} 67. Rf7+ {[%clk 0:00:09]}  Kd8 {[%clk 0:00:08]} 68. Kd5 {[%clk 0:00:10]}  Ke8 {[%clk 0:00:04]} 69. Ra7 {[%clk 0:00:10]}  Kd8 {[%clk 0:00:02]} 70. c5 {[%clk 0:00:10]}  Kc8 {[%clk 0:00:02]} 71. Kc6 {[%clk 0:00:11]}  Kb8 {[%clk 0:00:02]} 72. Rf7 {[%clk 0:00:11]} 1-0


[Site "https://www.chess.com"]

[Event "Titled Tuesday Blitz December 20 Early 2022"]
[White "Borges Matos, Juan"]
[Black "Ural_bogatyr"]
[WhiteFideId "3500160"]
[WhiteElo "2409"]
[BlackElo "2615"]
[Result "0-1"]
[Round "02"]
[TimeControl "180+2"]
[Date "2022.12.20"]
[WhiteClock "0:00:31"]
[BlackClock "0:02:12"]

1. d4 {[%clk 0:03:00]}  Nf6 {[%clk 0:02:55]} 2. c4 {[%clk 0:03:01]}  e5 {[%clk 0:02:56]} 3. dxe5 {[%clk 0:03:00]}  Ng4 {[%clk 0:02:56]} 4. Nf3 {[%clk 0:03:00]}  Bc5 {[%clk 0:02:57]} 5. e3 {[%clk 0:02:59]}  Nc6 {[%clk 0:02:57]} 6. Be2 {[%clk 0:02:58]}  O-O {[%clk 0:02:58]} 7. O-O {[%clk 0:02:57]}  Re8 {[%clk 0:02:57]} 8. Nc3 {[%clk 0:02:57]}  Ngxe5 {[%clk 0:02:58]} 9. Nxe5 {[%clk 0:02:54]}  Nxe5 {[%clk 0:02:59]} 10. b3 {[%clk 0:02:51]}  a5 {[%clk 0:02:59]} 11. Bb2 {[%clk 0:02:51]}  Ra6 {[%clk 0:03:00]} 12. Nd5 {[%clk 0:02:36]}  Rh6 {[%clk 0:02:58]} 13. f4 {[%clk 0:02:15]}  Ng6 {[%clk 0:02:49]} 14. Qd3 {[%clk 0:01:28]}  c6 {[%clk 0:02:43]} 15. Qc3 {[%clk 0:01:13]}  f6 {[%clk 0:02:37]} 16. Bf3 {[%clk 0:00:38]}  cxd5 {[%clk 0:02:34]} 17. Bxd5+ {[%clk 0:00:39]}  Kh8 {[%clk 0:02:34]} 18. Rae1 {[%clk 0:00:36]}  d6 {[%clk 0:02:30]} 19. Kh1 {[%clk 0:00:33]}  Bb4 {[%clk 0:02:25]} 20. Qd4 {[%clk 0:00:30]}  Bxe1 {[%clk 0:02:23]} 21. Rxe1 {[%clk 0:00:31]}  Ne7 {[%clk 0:02:12]} 0-1


[Site "https://www.chess.com"]

[Event "Titled Tuesday Blitz December 20 Early 2022"]
[White "Butterfly"]
[Black "Mileo, Miguelito"]
[BlackFideId "851108"]
[WhiteElo "2536"]
[BlackElo "1721"]
[Result "0-1"]
[Round "02"]
[TimeControl "180+2"]
[Date "2022.12.20"]
[WhiteClock "0:00:07"]
[BlackClock "0:00:46"]

1. b3 {[%clk 0:03:00]}  e5 {[%clk 0:02:59]} 2. Bb2 {[%clk 0:03:00]}  Nc6 {[%clk 0:02:59]} 3. c4 {[%clk 0:03:00]}  Nge7 {[%clk 0:02:57]} 4. Nc3 {[%clk 0:03:00]}  d5 {[%clk 0:02:56]} 5. cxd5 {[%clk 0:02:59]}  Nxd5 {[%clk 0:02:57]} 6. Nf3 {[%clk 0:02:59]}  Nxc3 {[%clk 0:02:55]} 7. dxc3 {[%clk 0:02:59]}  Bd6 {[%clk 0:02:48]} 8. e4 {[%clk 0:02:57]}  Qf6 {[%clk 0:02:40]} 9. h3 {[%clk 0:02:53]}  Bd7 {[%clk 0:02:33]} 10. Qc2 {[%clk 0:02:52]}  h5 {[%clk 0:02:31]} 11. O-O-O {[%clk 0:02:52]}  g5 {[%clk 0:02:28]} 12. Kb1 {[%clk 0:02:51]}  O-O-O {[%clk 0:02:27]} 13. Bc4 {[%clk 0:02:49]}  g4 {[%clk 0:02:26]} 14. hxg4 {[%clk 0:02:17]}  hxg4 {[%clk 0:02:27]} 15. Nd2 {[%clk 0:02:17]}  Rxh1 {[%clk 0:02:19]} 16. Rxh1 {[%clk 0:02:18]}  Qxf2 {[%clk 0:02:19]} 17. Rf1 {[%clk 0:02:18]}  Qxg2 {[%clk 0:02:19]} 18. Rxf7 {[%clk 0:02:17]}  g3 {[%clk 0:02:17]} 19. Qd1 {[%clk 0:02:14]}  Rh8 {[%clk 0:02:10]} 20. Kc2 {[%clk 0:01:44]}  Qh3 {[%clk 0:01:16]} 21. Rg7 {[%clk 0:01:36]}  Bf8 {[%clk 0:01:10]} 22. Bf1 {[%clk 0:01:20]}  Qh2 {[%clk 0:01:08]} 23. Rg6 {[%clk 0:01:08]}  Bh6 {[%clk 0:01:06]} 24. Bc1 {[%clk 0:01:07]}  Rd8 {[%clk 0:01:01]} 25. Qe2 {[%clk 0:00:59]}  Bf4 {[%clk 0:00:59]} 26. Nf3 {[%clk 0:00:42]}  Qh7 {[%clk 0:00:54]} 27. Rf6 {[%clk 0:00:28]}  Bxc1 {[%clk 0:00:53]} 28. Kxc1 {[%clk 0:00:26]}  Qg7 {[%clk 0:00:53]} 29. Rxc6 {[%clk 0:00:10]}  Bxc6 {[%clk 0:00:51]} 30. Bg2 {[%clk 0:00:10]}  Qh6+ {[%clk 0:00:51]} 31. Kc2 {[%clk 0:00:09]}  Qf4 {[%clk 0:00:51]} 32. Nd2 {[%clk 0:00:08]}  Qf2 {[%clk 0:00:48]} 33. Qxf2 {[%clk 0:00:09]}  gxf2 {[%clk 0:00:48]} 34. Kd1 {[%clk 0:00:09]}  Bxe4 {[%clk 0:00:47]} 35. Bf1 {[%clk 0:00:07]}  Bd3 {[%clk 0:00:45]} 36. Bxd3 {[%clk 0:00:06]}  Rxd3 {[%clk 0:00:45]} 37. Ke2 {[%clk 0:00:07]}  Rxd2+ {[%clk 0:00:46]} 0-1


[Site "https://www.chess.com"]

[Event "Titled Tuesday Blitz December 20 Early 2022"]
[White "Calzadilla De la Cruz, Maray"]
[Black "Kopylov_Alex"]
[WhiteFideId "3509770"]
[WhiteElo "1994"]
[BlackElo "2790"]
[Result "1-0"]
[Round "02"]
[TimeControl "180+2"]
[Date "2022.12.20"]
[WhiteClock "0:00:52"]
[BlackClock "0:00:29"]

1. e4 {[%clk 0:03:00]}  e5 {[%clk 0:02:57]} 2. Nf3 {[%clk 0:03:00]}  Nc6 {[%clk 0:02:57]} 3. Bb5 {[%clk 0:03:00]}  a6 {[%clk 0:02:57]} 4. Ba4 {[%clk 0:03:00]}  d6 {[%clk 0:02:56]} 5. O-O {[%clk 0:02:57]}  Bd7 {[%clk 0:02:56]} 6. c3 {[%clk 0:02:57]}  Nf6 {[%clk 0:02:56]} 7. d4 {[%clk 0:02:57]}  g6 {[%clk 0:02:57]} 8. d5 {[%clk 0:02:55]}  Nb8 {[%clk 0:02:56]} 9. Bc2 {[%clk 0:02:55]}  Bg7 {[%clk 0:02:56]} 10. c4 {[%clk 0:02:55]}  Bg4 {[%clk 0:02:55]} 11. h3 {[%clk 0:02:54]}  Bxf3 {[%clk 0:02:55]} 12. Qxf3 {[%clk 0:02:55]}  O-O {[%clk 0:02:54]} 13. Nc3 {[%clk 0:02:54]}  Nbd7 {[%clk 0:02:49]} 14. Be3 {[%clk 0:02:52]}  Nh5 {[%clk 0:02:41]} 15. g3 {[%clk 0:02:39]}  Bf6 {[%clk 0:02:36]} 16. h4 {[%clk 0:02:37]}  Ng7 {[%clk 0:02:36]} 17. b4 {[%clk 0:02:35]}  Be7 {[%clk 0:02:35]} 18. Bh6 {[%clk 0:02:32]}  Kh8 {[%clk 0:02:17]} 19. Rad1 {[%clk 0:02:25]}  Nf6 {[%clk 0:02:16]} 20. Kg2 {[%clk 0:02:11]}  Ng8 {[%clk 0:02:15]} 21. Bxg7+ {[%clk 0:02:11]}  Kxg7 {[%clk 0:02:05]} 22. h5 {[%clk 0:02:12]}  a5 {[%clk 0:02:03]} 23. a3 {[%clk 0:02:11]}  axb4 {[%clk 0:02:04]} 24. axb4 {[%clk 0:02:12]}  Ra3 {[%clk 0:02:04]} 25. Ra1 {[%clk 0:02:03]}  Qa8 {[%clk 0:02:04]} 26. Rxa3 {[%clk 0:02:03]}  Qxa3 {[%clk 0:02:03]} 27. Rb1 {[%clk 0:01:58]}  Bd8 {[%clk 0:01:47]} 28. Rb3 {[%clk 0:01:46]}  Qa1 {[%clk 0:01:41]} 29. c5 {[%clk 0:01:45]}  Nh6 {[%clk 0:01:34]} 30. Nb5 {[%clk 0:01:41]}  dxc5 {[%clk 0:01:22]} 31. bxc5 {[%clk 0:01:40]}  c6 {[%clk 0:01:21]} 32. Nd6 {[%clk 0:01:38]}  cxd5 {[%clk 0:01:16]} 33. exd5 {[%clk 0:01:38]}  Qc1 {[%clk 0:01:15]} 34. Qe2 {[%clk 0:01:23]}  Bf6 {[%clk 0:01:08]} 35. Rxb7 {[%clk 0:01:22]}  Qa3 {[%clk 0:01:07]} 36. Qc4 {[%clk 0:01:13]}  Ng8 {[%clk 0:00:49]} 37. hxg6 {[%clk 0:01:12]}  hxg6 {[%clk 0:00:49]} 38. Bxg6 {[%clk 0:01:04]}  Kxg6 {[%clk 0:00:47]} 39. Qg4+ {[%clk 0:01:04]}  Bg5 {[%clk 0:00:41]} 40. Qf5+ {[%clk 0:01:03]}  Kh6 {[%clk 0:00:41]} 41. Rxf7 {[%clk 0:00:57]}  Rxf7 {[%clk 0:00:37]} 42. Nxf7+ {[%clk 0:00:58]}  Kg7 {[%clk 0:00:37]} 43. Nxg5 {[%clk 0:00:59]}  Qa7 {[%clk 0:00:35]} 44. Qxe5+ {[%clk 0:00:56]}  Kg6 {[%clk 0:00:34]} 45. Qe6+ {[%clk 0:00:55]}  Nf6 {[%clk 0:00:33]} 46. Ne4 {[%clk 0:00:54]}  Kh5 {[%clk 0:00:33]} 47. Nxf6+ {[%clk 0:00:54]}  Kg6 {[%clk 0:00:34]} 48. Ne8+ {[%clk 0:00:53]}  Kh7 {[%clk 0:00:33]} 49. Nf6+ {[%clk 0:00:53]}  Kg6 {[%clk 0:00:33]} 50. Nd7+ {[%clk 0:00:53]}  Kg7 {[%clk 0:00:30]} 51. Ne5 {[%clk 0:00:53]}  Qxc5 {[%clk 0:00:29]} 52. Qg6+ {[%clk 0:00:51]}  Kf8 {[%clk 0:00:29]} 53. Qf7# {[%clk 0:00:52]} 1-0


[Site "https://www.chess.com"]

[Event "Titled Tuesday Blitz December 20 Early 2022"]
[White "Coachpoker"]
[Black "Firouzja, Alireza"]
[BlackFideId "12573981"]
[WhiteElo "2626"]
[BlackElo "2785"]
[Result "0-1"]
[Round "02"]
[TimeControl "180+2"]
[Date "2022.12.20"]
[WhiteClock "0:00:06"]
[BlackClock "0:00:15"]

1. d4 {[%clk 0:03:00]}  d5 {[%clk 0:02:37]} 2. c4 {[%clk 0:03:00]}  e6 {[%clk 0:02:37]} 3. Nf3 {[%clk 0:03:00]}  a6 {[%clk 0:02:37]} 4. e3 {[%clk 0:03:01]}  Nf6 {[%clk 0:02:36]} 5. Nbd2 {[%clk 0:03:01]}  b6 {[%clk 0:02:37]} 6. Bd3 {[%clk 0:03:01]}  Bb7 {[%clk 0:02:37]} 7. O-O {[%clk 0:03:01]}  Bd6 {[%clk 0:02:38]} 8. Qe2 {[%clk 0:03:01]}  Ne4 {[%clk 0:02:36]} 9. b3 {[%clk 0:03:01]}  O-O {[%clk 0:02:36]} 10. Bb2 {[%clk 0:03:01]}  Nd7 {[%clk 0:02:36]} 11. Rac1 {[%clk 0:02:58]}  Qf6 {[%clk 0:02:26]} 12. Rfd1 {[%clk 0:02:53]}  Qh6 {[%clk 0:02:20]} 13. Nf1 {[%clk 0:02:49]}  f5 {[%clk 0:02:10]} 14. cxd5 {[%clk 0:02:49]}  Bxd5 {[%clk 0:02:10]} 15. Ne5 {[%clk 0:02:46]}  Bxe5 {[%clk 0:02:09]} 16. dxe5 {[%clk 0:02:46]}  Ndc5 {[%clk 0:01:55]} 17. f3 {[%clk 0:02:39]}  Nxd3 {[%clk 0:01:53]} 18. Qxd3 {[%clk 0:02:36]}  Ng5 {[%clk 0:01:51]} 19. Rxc7 {[%clk 0:02:30]}  Rad8 {[%clk 0:01:27]} 20. Bd4 {[%clk 0:02:29]}  Qg6 {[%clk 0:01:24]} 21. Kf2 {[%clk 0:02:11]}  Qh5 {[%clk 0:01:06]} 22. h3 {[%clk 0:01:52]}  f4 {[%clk 0:00:53]} 23. e4 {[%clk 0:01:41]}  Bxe4 {[%clk 0:00:53]} 24. fxe4 {[%clk 0:01:37]}  f3 {[%clk 0:00:53]} 25. Rd2 {[%clk 0:00:44]}  fxg2+ {[%clk 0:00:40]} 26. Kxg2 {[%clk 0:00:44]}  Rf3 {[%clk 0:00:40]} 27. Qe2 {[%clk 0:00:40]}  Qxh3+ {[%clk 0:00:37]} 28. Kg1 {[%clk 0:00:40]}  Rdf8 {[%clk 0:00:38]} 29. Rc1 {[%clk 0:00:36]}  R8f4 {[%clk 0:00:35]} 30. Nh2 {[%clk 0:00:30]}  Rg3+ {[%clk 0:00:34]} 31. Kh1 {[%clk 0:00:29]}  Nxe4 {[%clk 0:00:29]} 32. Bg1 {[%clk 0:00:21]}  h5 {[%clk 0:00:18]} 33. Rc4 {[%clk 0:00:15]}  Nf2+ {[%clk 0:00:12]} 34. Qxf2 {[%clk 0:00:16]}  Rxf2 {[%clk 0:00:13]} 35. Rxf2 {[%clk 0:00:16]}  Rg5 {[%clk 0:00:11]} 36. Rcf4 {[%clk 0:00:13]}  Qd3 {[%clk 0:00:09]} 37. R4f3 {[%clk 0:00:13]}  Qe4 {[%clk 0:00:09]} 38. Rg2 {[%clk 0:00:11]}  Rxg2 {[%clk 0:00:07]} 39. Kxg2 {[%clk 0:00:12]}  Qxe5 {[%clk 0:00:07]} 40. Bxb6 {[%clk 0:00:11]}  Qg5+ {[%clk 0:00:08]} 41. Rg3 {[%clk 0:00:10]}  Qd2+ {[%clk 0:00:08]} 42. Bf2 {[%clk 0:00:10]}  Qxa2 {[%clk 0:00:08]} 43. Nf3 {[%clk 0:00:09]}  Qc2 {[%clk 0:00:09]} 44. Nh4 {[%clk 0:00:08]}  Qe4+ {[%clk 0:00:09]} 45. Nf3 {[%clk 0:00:08]}  h4 {[%clk 0:00:05]} 46. Rg5 {[%clk 0:00:07]}  h3+ {[%clk 0:00:06]} 47. Kg3 {[%clk 0:00:07]}  h2 {[%clk 0:00:04]} 48. Nxh2 {[%clk 0:00:05]}  Qd3+ {[%clk 0:00:04]} 49. Nf3 {[%clk 0:00:05]}  Qxb3 {[%clk 0:00:05]} 50. Rg4 {[%clk 0:00:05]}  a5 {[%clk 0:00:05]} 51. Bd4 {[%clk 0:00:05]}  a4 {[%clk 0:00:04]} 52. Bxg7 {[%clk 0:00:05]}  a3 {[%clk 0:00:03]} 53. Be5+ {[%clk 0:00:05]}  Kf7 {[%clk 0:00:04]} 54. Rg7+ {[%clk 0:00:05]}  Ke8 {[%clk 0:00:05]} 55. Ra7 {[%clk 0:00:05]}  a2 {[%clk 0:00:05]} 56. Kf4 {[%clk 0:00:05]}  Qb4+ {[%clk 0:00:04]} 57. Kg5 {[%clk 0:00:05]}  Qb3 {[%clk 0:00:04]} 58. Kf6 {[%clk 0:00:04]}  Qxf3+ {[%clk 0:00:04]} 59. Kxe6 {[%clk 0:00:05]}  Qc6+ {[%clk 0:00:04]} 60. Bd6 {[%clk 0:00:05]}  Qc4+ {[%clk 0:00:05]} 61. Ke5 {[%clk 0:00:04]}  a1=Q+ {[%clk 0:00:05]} 62. Rxa1 {[%clk 0:00:02]}  Qc3+ {[%clk 0:00:05]} 63. Ke6 {[%clk 0:00:03]}  Qxa1 {[%clk 0:00:06]} 64. Be5 {[%clk 0:00:03]}  Qa2+ {[%clk 0:00:07]} 65. Kd6 {[%clk 0:00:03]}  Kf7 {[%clk 0:00:08]} 66. Bd4 {[%clk 0:00:03]}  Qe6+ {[%clk 0:00:09]} 67. Kc5 {[%clk 0:00:03]}  Ke8 {[%clk 0:00:10]} 68. Kb4 {[%clk 0:00:03]}  Kd7 {[%clk 0:00:11]} 69. Kc5 {[%clk 0:00:04]}  Qc6+ {[%clk 0:00:11]} 70. Kb4 {[%clk 0:00:04]}  Ke6 {[%clk 0:00:12]} 71. Bc5 {[%clk 0:00:05]}  Kd5 {[%clk 0:00:13]} 72. Ba7 {[%clk 0:00:05]}  Qc4+ {[%clk 0:00:14]} 73. Ka5 {[%clk 0:00:05]}  Kc6 {[%clk 0:00:14]} 74. Bc5 {[%clk 0:00:06]}  Qb5# {[%clk 0:00:15]} 0-1


[Site "https://www.chess.com"]

[Event "Titled Tuesday Blitz December 20 Early 2022"]
[White "DIMONBANAN"]
[Black "Harkness, Bryan"]
[BlackFideId "444227"]
[WhiteElo "2416"]
[BlackElo "1935"]
[Result "0-1"]
[Round "02"]
[TimeControl "180+2"]
[Date "2022.12.20"]
[WhiteClock "0:00:04"]
[BlackClock "0:00:06"]

1. e4 {[%clk 0:03:00]}  c5 {[%clk 0:02:59]} 2. Nf3 {[%clk 0:03:00]}  Nc6 {[%clk 0:02:59]} 3. d4 {[%clk 0:03:01]}  cxd4 {[%clk 0:02:59]} 4. Nxd4 {[%clk 0:03:02]}  Nf6 {[%clk 0:03:00]} 5. Nc3 {[%clk 0:03:02]}  e5 {[%clk 0:03:00]} 6. Ndb5 {[%clk 0:03:03]}  d6 {[%clk 0:03:00]} 7. a4 {[%clk 0:03:03]}  a6 {[%clk 0:02:59]} 8. Na3 {[%clk 0:03:03]}  Be6 {[%clk 0:02:59]} 9. Bg5 {[%clk 0:03:03]}  Be7 {[%clk 0:02:57]} 10. Bxf6 {[%clk 0:03:03]}  gxf6 {[%clk 0:02:52]} 11. Bc4 {[%clk 0:02:48]}  O-O {[%clk 0:02:42]} 12. Nd5 {[%clk 0:02:12]}  Kh8 {[%clk 0:02:28]} 13. c3 {[%clk 0:02:12]}  f5 {[%clk 0:02:18]} 14. Qe2 {[%clk 0:01:37]}  Rc8 {[%clk 0:01:56]} 15. Nc2 {[%clk 0:01:32]}  fxe4 {[%clk 0:01:43]} 16. Qxe4 {[%clk 0:01:26]}  Nd4 {[%clk 0:01:41]} 17. cxd4 {[%clk 0:01:16]}  Rxc4 {[%clk 0:01:39]} 18. Nce3 {[%clk 0:01:17]}  Rxd4 {[%clk 0:01:38]} 19. Qf3 {[%clk 0:01:07]}  e4 {[%clk 0:01:23]} 20. Qh5 {[%clk 0:00:54]}  Bxd5 {[%clk 0:01:19]} 21. O-O {[%clk 0:00:54]}  Be6 {[%clk 0:01:12]} 22. Rfd1 {[%clk 0:00:38]}  Bf6 {[%clk 0:01:05]} 23. h3 {[%clk 0:00:24]}  Be5 {[%clk 0:00:57]} 24. Ng4 {[%clk 0:00:17]}  f5 {[%clk 0:00:49]} 25. Ne3 {[%clk 0:00:10]}  Qf6 {[%clk 0:00:42]} 26. Rxd4 {[%clk 0:00:07]}  Bxd4 {[%clk 0:00:42]} 27. Rd1 {[%clk 0:00:07]}  Be5 {[%clk 0:00:38]} 28. Qe2 {[%clk 0:00:07]}  f4 {[%clk 0:00:35]} 29. Ng4 {[%clk 0:00:08]}  Bxg4 {[%clk 0:00:33]} 30. Qxg4 {[%clk 0:00:09]}  Rg8 {[%clk 0:00:31]} 31. Qd7 {[%clk 0:00:05]}  f3 {[%clk 0:00:30]} 32. g3 {[%clk 0:00:04]}  e3 {[%clk 0:00:12]} 33. Qxb7 {[%clk 0:00:02]}  e2 {[%clk 0:00:10]} 34. Re1 {[%clk 0:00:02]}  Bxg3 {[%clk 0:00:09]} 35. fxg3 {[%clk 0:00:02]}  Rxg3+ {[%clk 0:00:09]} 36. Kf2 {[%clk 0:00:03]}  Rg2+ {[%clk 0:00:10]} 37. Ke3 {[%clk 0:00:04]}  Qe5+ {[%clk 0:00:09]} 38. Kd3 {[%clk 0:00:04]}  f2 {[%clk 0:00:08]} 39. Qc8+ {[%clk 0:00:04]}  Rg8 {[%clk 0:00:07]} 40. Qd7 {[%clk 0:00:04]}  fxe1=Q {[%clk 0:00:06]} 0-1


[Site "https://www.chess.com"]